bitfinex/quotes_ETHUSD_20240621
["timestamp","ask_amount","ask_price","bid_price","bid_amount"]
[1718963507258,4.29435,3535.3,3532.6,0.24513803]
[1718963507578,4.29435,3535.3,3532.5,1.30981819]
[1718963507755,4.29435,3535.3,3532.3,1.709]
[1718963507756,4.29435,3535.3,3532.6,0.24514138]
[1718963507954,3.457,3535.0,3532.3,1.30981819]
[1718963508158,11.0114,3534.9,3532.4,0.24514714]
[1718963508353,11.0114,3534.9,3532.5,0.24514714]
[1718963508573,11.0114,3534.9,3532.6,0.24514267]
[1718963508782,11.0114,3534.9,3532.4,4.31156824]
[1718963509087,11.0114,3534.9,3532.5,0.24514694]
[1718963509383,1.44684,3534.8,3532.6,0.24514694]
[1718963509592,1.44684,3534.8,3532.3,3.02067697]
[1718963509593,0.55,3534.7,3532.3,3.02067697]
[1718963509796,0.55,3534.7,3532.4,0.2451595]
[1718963510082,1.245824,3534.6,3532.1,4.31185039]
[1718963510283,1.245824,3534.6,3532.5,1.31185039]
[1718963510491,1.245824,3534.6,3532.6,0.24517114]
[1718963510690,1.245824,3534.6,3532.7,1.55702153]
[1718963510986,7.4614,3534.9,3532.8,3.2660077]
[1718963511201,7.1157,3534.9,3533.2,3.02085039]
[1718963511493,6.06489315,3534.9,3533.2,1.709]
[1718963511649,6.06489315,3534.9,3533.3,1.55540202]
[1718963511851,6.06489315,3534.9,3533.4,1.55540202]
[1718963512095,6.06489315,3534.9,3533.5,0.24507476]
[1718963512264,6.06489315,3534.9,3533.4,0.05650905]
[1718963512683,6.67138246,3534.9,3533.0,1.31032726]
[1718963512857,6.67138246,3534.9,3532.6,1.31032726]
[1718963513057,6.06489315,3534.9,3532.7,1.55546729]
[1718963513295,6.06489315,3534.9,3531.8,3.0]
[1718963513296,6.06489315,3534.9,3533.0,1.31032726]
[1718963513462,6.06489315,3534.9,3533.1,0.24514003]
[1718963513663,6.06489315,3534.9,3533.2,1.95414003]
[1718963513883,6.06489315,3534.9,3533.4,1.709]
[1718963515094,6.06489315,3534.9,3533.2,1.709]
[1718963515672,6.67138246,3534.9,3533.0,0.2849]
[1718963515874,6.67138246,3534.9,3532.9,0.2849]
[1718963516200,6.67138246,3534.9,3532.7,1.31019486]
[1718963516366,6.67138246,3534.9,3532.5,0.2849]
[1718963516564,1.21713825,3534.8,3532.5,0.2849]
[1718963516867,1.21713825,3534.8,3532.2,3.0]
[1718963517088,1.21713825,3534.8,3531.8,1.709]
[1718963517410,1.21713825,3534.8,3531.7,1.709]
[1718963517566,4.21713825,3534.8,3531.7,1.709]
[1718963517766,1.37390314,3534.7,3531.7,1.709]
[1718963518114,4.37390314,3534.7,3531.7,1.709]
[1718963518624,4.37390314,3534.7,3530.9,0.56722554]
[1718963518625,6.8027,3534.1,3530.9,0.56722554]
[1718963518778,3.457,3534.2,3530.6,1.13445108]
[1718963518779,7.82867,3534.0,3530.6,0.56722554]
[1718963518962,6.8027,3533.8,3530.7,1.134593]
[1718963519290,6.8027,3533.8,3530.2,0.85083831]
[1718963519291,6.8027,3533.4,3530.0,0.56722554]
[1718963519607,6.8027,3533.4,3529.8,0.85083831]
[1718963519608,7.1483,3533.1,3529.8,1.134593]
[1718963519816,3.457,3532.8,3529.5,0.56722554]
[1718963520115,7.1483,3532.7,3529.7,1.134593]
[1718963520265,7.6983,3532.7,3529.7,1.134593]
[1718963520760,7.6983,3532.7,3529.5,0.56950863]
[1718963520963,1.11553,3532.6,3529.6,2.46505786]
[1718963521291,7.4475,3532.4,3529.6,1.134927]
[1718963521495,0.55,3532.3,3529.7,2.46519643]
[1718963521675,8.30225,3532.2,3529.2,0.56950863]
[1718963521998,8.30225,3532.2,3529.1,0.2849]
[1718963522203,7.4475,3531.8,3529.2,3.03483148]
[1718963522404,1.7008,3531.7,3528.2,0.56950863]
[1718963522764,7.7324,3531.6,3528.0,0.56950863]
[1718963522862,7.7324,3531.6,3528.1,2.4659661]
[1718963523065,7.4475,3531.3,3528.2,0.02899751]
[1718963523296,7.4475,3531.3,3528.2,0.02538001]
[1718963523297,3.457,3529.9,3528.2,0.02538001]
[1718963523508,6.8973,3529.8,3528.2,0.02538001]
[1718963523844,6.8973,3530.6,3527.7,1.709]
[1718963523984,6.8973,3530.6,3528.0,0.56950863]
[1718963524320,6.8973,3530.6,3528.1,1.02948371]
[1718963524539,6.8973,3530.6,3528.1,1.75218352]
[1718963524681,6.8973,3530.6,3528.5,3.97624]
[1718963524882,6.7799,3531.7,3528.9,1.709]
[1718963525080,6.7799,3531.7,3529.2,1.709]
[1718963525379,6.7799,3531.7,3529.2,0.2849]
[1718963525589,6.7799,3531.7,3529.3,0.55]
[1718963526221,6.7799,3531.7,3529.3,3.55]
[1718963526418,3.457,3532.3,3529.4,3.0]
[1718963526615,6.7789,3533.7,3530.6,0.2849]
[1718963526843,6.7789,3533.7,3530.3,2.26607]
[1718963526844,6.7789,3533.7,3530.8,0.2849]
[1718963527104,5.1578,3534.7,3530.4,3.0]
[1718963527105,7.1524,3533.5,3530.4,3.56950863]
[1718963527311,7.1524,3533.2,3529.7,3.0]
[1718963527515,1.06094,3533.1,3530.5,0.55]
[1718963527747,1.06094,3533.1,3530.6,0.05662976]
[1718963527903,7.1524,3533.2,3530.7,1.709]
[1718963528103,7.1524,3533.2,3531.1,0.2849]
[1718963528344,7.1524,3533.2,3531.2,0.2849]
[1718963528552,6.9233,3534.8,3531.2,0.2849]
[1718963528706,6.9233,3534.8,3531.4,1.9939]
[1718963529061,1.03803,3534.7,3531.4,3.0]
[1718963529358,7.0568,3534.6,3531.3,3.0]
[1718963529651,7.0568,3534.6,3530.9,1.709]
[1718963530109,7.0568,3534.6,3531.0,1.709]
[1718963530310,1.359483,3534.5,3531.0,1.709]
[1718963530540,4.359483,3534.5,3531.0,1.709]
[1718963531078,4.359483,3534.5,3531.2,1.709]
[1718963531371,3.809483,3534.5,3531.4,1.709]
[1718963531529,1.2454313,3534.4,3531.4,1.709]
[1718963531855,4.2454313,3534.4,3531.4,1.709]
[1718963532325,1.2454313,3534.4,3531.4,1.709]
[1718963533257,1.2454313,3534.4,3531.3,0.2849]
[1718963533464,7.4449,3534.1,3531.0,1.709]
[1718963533967,0.005,3533.4,3531.0,1.709]
[1718963534465,7.4449,3533.3,3530.6,1.709]
[1718963534779,0.74499,3533.2,3530.6,1.709]
[1718963535078,0.74499,3533.2,3529.7,3.457]
[1718963535566,0.55,3533.1,3529.8,3.128599]
[1718963536275,6.964,3533.0,3530.0,1.709]
[1718963536570,1.375899,3532.9,3530.0,1.709]
[1718963536805,6.964,3532.7,3530.0,1.709]
[1718963537132,6.964,3532.7,3529.8,0.2849]
[1718963537388,6.964,3532.7,3530.2,1.709]
[1718963537533,6.964,3532.7,3529.6,1.134751]
[1718963537743,4.1246899,3532.6,3528.8,7.2362]
[1718963538078,7.0905,3532.5,3529.1,1.134942]
[1718963538229,7.0905,3532.5,3529.1,4.591942]
[1718963538656,7.0905,3532.5,3530.2,0.2849]
[1718963538862,7.0905,3532.5,3530.6,2.26587]
[1718963539062,3.457,3534.2,3530.7,2.28772726]
[1718963539063,7.1752,3533.5,3530.7,2.28772726]
[1718963539390,3.457,3534.2,3529.1,2.5534262]
[1718963539391,3.457,3532.4,3529.1,2.5534262]
[1718963539705,3.457,3531.7,3528.5,0.29626114]
[1718963540206,7.3104,3531.6,3528.6,1.134987]
[1718963540368,1.07674,3531.5,3528.6,1.134987]
[1718963540564,1.07674,3531.5,3528.7,0.0164578]
[1718963540761,1.07674,3531.5,3528.5,2.84840114]
[1718963540994,7.3104,3531.6,3529.6,2.26653]
[1718963541196,7.3104,3531.6,3529.4,2.55153]
[1718963541514,7.3104,3531.6,3529.4,0.2849]
[1718963541864,3.457,3533.1,3529.9,1.9939]
[1718963541865,7.3104,3533.0,3529.9,1.9939]
[1718963542069,7.3104,3533.0,3530.0,0.55]
[1718963542296,1.07674,3532.9,3530.0,3.8349]
[1718963542465,1.07674,3532.9,3530.1,3.0]
[1718963542665,1.07674,3532.9,3530.2,0.55]
[1718963542968,1.07674,3532.9,3530.0,0.8349]
[1718963543488,7.3104,3533.0,3530.1,1.9939]
[1718963543702,7.3104,3533.0,3530.1,3.37094697]
[1718963543895,7.3104,3533.0,3530.5,3.457]
[1718963544202,7.3104,3533.0,3530.6,3.55]
[1718963544824,7.3104,3533.0,3531.2,1.709]
[1718963545221,8.04144,3533.0,3531.1,0.2849]
[1718963545663,8.04144,3533.0,3530.0,0.2849]
[1718963546310,6.9201,3532.8,3529.3,0.8829508]
[1718963546520,0.55,3532.7,3529.3,0.8829508]
[1718963546846,6.9201,3532.7,3529.3,0.8829508]
[1718963546999,6.9201,3532.5,3529.3,0.8829508]
[1718963547641,6.9201,3532.4,3529.3,0.8829508]
[1718963548011,6.9201,3532.4,3529.4,0.2849]
[1718963548444,6.9201,3532.4,3529.4,2.55156]
[1718963548673,6.9201,3532.4,3529.7,0.2849]
[1718963548820,6.9201,3532.4,3530.1,1.709]
[1718963549016,6.9201,3532.4,3530.2,2.259]
[1718963549360,7.0386,3533.3,3530.6,1.709]
[1718963549657,0.70436,3533.2,3530.7,0.8349]
[1718963551385,0.70436,3533.2,3530.3,3.0]
[1718963551673,6.812,3533.1,3530.0,0.2849]
[1718963552029,6.812,3532.9,3529.9,3.0]
[1718963552229,6.812,3532.9,3529.5,3.0]
[1718963552488,6.812,3532.9,3529.6,0.2849]
[1718963552630,0.6812,3532.8,3529.6,4.26038]
[1718963552826,6.812,3532.7,3529.8,0.2849]
[1718963553612,7.362,3532.6,3529.2,0.2849]
[1718963553732,6.812,3532.6,3529.2,0.2849]
[1718963554068,6.812,3532.4,3529.2,0.2849]
[1718963554241,3.55,3532.5,3529.2,0.2849]
[1718963554242,10.7446,3532.2,3529.2,0.2849]
[1718963554444,7.2876,3532.0,3528.7,0.2849]
[1718963554781,8.66206,3531.9,3528.7,0.2849]
[1718963555132,7.2876,3531.7,3528.7,0.2849]
[1718963555328,7.2876,3531.7,3528.5,1.419904]
[1718963556565,7.2876,3531.7,3528.5,0.2849]
[1718963556772,7.2876,3531.5,3528.5,0.2849]
[1718963557071,8.62136,3531.4,3528.5,0.2849]
[1718963557415,7.8376,3531.4,3528.5,0.2849]
[1718963557575,7.8376,3531.4,3528.1,2.0182168]
[1718963557738,7.8376,3531.4,3528.1,0.8829508]
[1718963557938,7.8376,3531.4,3528.2,0.0566645]
[1718963558165,7.2876,3531.2,3528.3,0.05666447]
[1718963558571,7.2876,3531.2,3528.3,0.2849]
[1718963558776,7.2876,3531.2,3528.4,0.0566553]
[1718963559078,7.2876,3531.2,3528.8,0.2849]
[1718963559236,7.2876,3531.2,3528.9,0.8349]
[1718963559438,8.129306,3531.2,3528.9,0.8349]
[1718963561895,8.129306,3531.2,3528.5,0.2849]
[1718963562399,8.129306,3531.2,3528.6,0.04922686]
[1718963562774,8.129306,3531.2,3528.0,1.135311]
[1718963562963,8.129306,3531.2,3527.9,0.58097544]
[1718963563163,7.7405306,3531.1,3528.1,0.2849]
[1718963563414,7.7405306,3531.1,3528.1,3.2849]
[1718963563808,7.7405306,3531.1,3528.1,0.2849]
[1718963564219,7.7405306,3531.1,3528.2,0.55]
[1718963564649,7.7405306,3531.1,3528.3,2.55227]
[1718963564808,0.85822366,3531.0,3528.4,3.8349]
[1718963565011,7.001,3530.9,3528.5,0.55]
[1718963565326,7.001,3530.9,3528.4,0.2849]
[1718963565732,7.001,3530.9,3528.1,0.2849]
[1718963566536,7.001,3530.9,3528.5,0.2849]
[1718963566842,0.78592237,3530.8,3528.6,0.0566589]
[1718963567155,0.78592237,3530.8,3528.5,0.2849]
[1718963567357,0.78592237,3530.8,3528.6,0.55]
[1718963567503,0.78592237,3530.8,3528.6,0.8349]
[1718963568008,0.78592237,3530.8,3528.6,0.2849]
[1718963568249,7.3305,3530.7,3528.7,1.709]
[1718963569045,7.3305,3530.7,3528.3,1.709]
[1718963569319,7.3305,3530.7,3528.3,1.9939]
[1718963569754,7.3305,3530.7,3528.0,1.709]
[1718963570245,7.3305,3530.7,3528.1,1.9939]
[1718963570444,7.3305,3530.5,3528.1,1.9939]
[1718963572820,7.3305,3530.5,3528.1,4.9939]
[1718963573421,7.3305,3530.5,3528.3,1.9939]
[1718963575416,7.3305,3530.5,3528.3,0.2849]
[1718963577483,7.3305,3530.5,3527.9,0.29607544]
[1718963577484,7.3305,3530.5,3528.1,3.0]
[1718963577685,3.0,3531.2,3527.9,0.29607544]
[1718963577686,7.4903,3530.3,3527.9,0.29607544]
[1718963577887,7.4903,3530.3,3527.9,0.58097544]
[1718963579093,7.4903,3530.3,3527.7,0.2849]
[1718963579394,7.4714,3530.1,3527.5,3.0]
[1718963579596,0.55,3530.0,3527.4,0.2849]
[1718963579920,7.4714,3529.9,3527.4,0.2849]
[1718963580119,7.4714,3529.9,3527.2,0.2849]
[1718963580253,0.55,3530.2,3526.9,1.135624]
[1718963580254,7.29,3529.7,3526.9,1.135624]
[1718963580754,7.29,3529.7,3526.4,0.66637217]
[1718963580967,7.29,3529.5,3526.4,1.80199617]
[1718963581186,7.29,3529.3,3526.6,0.2849]
[1718963581399,0.55,3529.6,3526.5,0.2849]
[1718963581400,7.29,3529.1,3526.5,0.2849]
[1718963581695,7.29,3529.1,3526.5,2.55343]
[1718963581895,7.29,3529.1,3526.6,3.2849]
[1718963582660,7.29,3529.1,3526.6,0.2849]
[1718963582860,7.29,3529.1,3526.5,0.2849]
[1718963583058,0.784,3529.2,3526.5,0.2849]
[1718963583059,7.1226,3528.9,3526.5,3.2849]
[1718963583263,7.1226,3528.9,3526.5,0.2849]
[1718963583786,7.1226,3528.9,3526.9,0.2849]
[1718963583992,7.1226,3528.9,3527.1,0.2849]
[1718963584660,7.1226,3528.9,3527.3,0.2849]
[1718963584900,7.1226,3528.9,3526.9,2.63915697]
[1718963584901,7.1226,3528.9,3527.6,2.26777]
[1718963585413,7.1226,3528.9,3527.5,5.26789]
[1718963585559,7.1226,3528.9,3527.4,5.26794]
[1718963585902,7.1226,3528.9,3527.4,3.0]
[1718963586064,7.1226,3528.9,3527.6,0.2849]
[1718963586277,7.1226,3528.9,3527.6,3.2849]
[1718963586628,7.1226,3528.9,3527.7,3.0]
[1718963586775,7.1226,3528.9,3527.5,2.55274]
[1718963586980,7.1226,3528.9,3527.6,3.8349]
[1718963587402,7.1226,3528.9,3528.0,0.2849]
[1718963587875,7.1226,3528.9,3527.7,0.2849]
[1718963588095,7.1226,3528.9,3527.7,2.55266]
[1718963588295,7.1226,3528.9,3527.9,0.2849]
[1718963589420,7.1226,3528.9,3528.1,0.2849]
[1718963589773,7.1226,3528.9,3527.8,3.0]
[1718963590018,7.1226,3528.9,3527.7,0.2849]
[1718963590227,7.1226,3528.9,3527.7,2.55266]
[1718963590520,7.236,3531.8,3528.7,1.709]
[1718963590729,4.35803602,3531.9,3528.7,1.709]
[1718963590730,7.236,3531.6,3528.7,1.709]
[1718963591084,7.236,3531.6,3528.7,4.709]
[1718963591306,7.236,3531.6,3528.7,3.0]
[1718963591659,7.236,3531.6,3528.5,4.709]
[1718963591820,6.8898,3531.4,3528.5,1.709]
[1718963592014,6.8898,3531.4,3528.6,0.2849]
[1718963592321,7.2693,3530.9,3528.3,3.0]
[1718963592641,7.2693,3530.9,3527.5,0.8829508]
[1718963592642,7.2693,3530.5,3527.5,0.8829508]
[1718963592807,1.796,3530.6,3527.0,3.457]
[1718963592808,7.2693,3530.3,3527.0,5.72521]
[1718963593010,7.2693,3530.3,3527.1,0.2849]
[1718963593244,6.983,3530.1,3526.7,0.2849]
[1718963593417,6.983,3530.0,3526.9,1.9939]
[1718963593764,6.983,3529.8,3526.9,1.9939]
[1718963594116,7.3197,3529.6,3526.9,1.9939]
[1718963594744,7.3197,3529.6,3527.7,1.709]
[1718963594904,7.3197,3529.6,3527.8,1.9939]
[1718963595108,7.3197,3529.6,3527.9,0.05667642]
[1718963595641,7.3197,3529.6,3528.0,0.05667953]
[1718963596137,7.3197,3529.6,3528.0,2.60913953]
[1718963596310,8.14496,3529.6,3528.0,0.2849]
[1718963596511,8.14496,3529.6,3527.6,1.709]
[1718963597203,8.14496,3529.6,3527.1,3.0]
[1718963597405,8.14496,3529.6,3526.8,1.709]
[1718963597603,8.14496,3529.6,3526.9,1.709]
[1718963597816,3.0,3530.4,3526.9,1.9939]
[1718963597817,7.3315,3529.4,3526.9,1.9939]
[1718963599069,7.3315,3529.2,3526.7,0.2849]
[1718963599205,7.3315,3529.2,3526.8,1.9939]
[1718963599554,7.8815,3529.1,3526.8,0.2849]
[1718963599847,6.9803,3528.7,3525.3,0.57193218]
[1718963600160,6.9803,3528.7,3524.8,1.54787074]
[1718963600161,8.6333,3528.5,3525.8,0.295632]
[1718963600301,8.6333,3528.5,3525.2,3.0]
[1718963600506,7.2702,3528.3,3525.0,4.53898]
[1718963600765,7.8202,3528.2,3524.9,0.2849]
[1718963601053,0.55,3528.4,3525.1,0.2849]
[1718963601054,7.2702,3528.0,3525.1,0.2849]
[1718963601553,7.2702,3527.8,3525.1,0.2849]
[1718963601764,7.2702,3527.6,3525.1,0.2849]
[1718963601905,7.2702,3527.4,3524.9,2.55446]
[1718963602106,7.2702,3527.4,3525.0,3.0]
[1718963602316,7.2702,3527.4,3524.9,0.2849]
[1718963602513,7.2702,3527.4,3525.3,0.2849]
[1718963602728,7.2702,3527.4,3525.3,3.2849]
[1718963602927,0.72702,3527.3,3525.3,0.2849]
[1718963603176,7.2702,3527.2,3525.3,0.2849]
[1718963603744,7.2702,3527.2,3525.4,0.05664661]
[1718963604162,7.2702,3527.2,3525.5,2.26917]
[1718963604487,7.2702,3527.2,3526.4,0.2849]
[1718963604770,7.2702,3527.2,3526.1,2.26875]
[1718963604771,7.2702,3528.5,3526.5,2.55338]
[1718963604929,7.2702,3528.5,3526.7,0.2849]
[1718963605636,7.2702,3528.5,3525.7,0.57314793]
[1718963605861,7.2702,3528.5,3525.5,3.0]
[1718963605862,7.2702,3528.3,3525.5,3.0]
[1718963606061,9.0826,3528.1,3525.4,0.2849]
[1718963606563,7.2645,3527.8,3524.8,1.0009236]
[1718963606871,7.72859668,3527.8,3524.9,0.2849]
[1718963607041,7.2645,3527.6,3524.9,0.2849]
[1718963607235,8.10905967,3527.5,3524.9,0.2849]
[1718963607443,7.2812,3527.3,3524.9,0.2849]
[1718963608261,7.2812,3527.3,3524.8,0.1179728]
[1718963608262,7.2812,3527.3,3525.4,0.2849]
[1718963608463,7.2812,3527.3,3525.4,3.2849]
[1718963608625,7.2812,3527.3,3525.4,0.2849]
[1718963608966,7.2812,3527.3,3525.0,3.0]
[1718963608967,0.81090597,3527.2,3525.0,3.2849]
[1718963611278,7.3897,3527.1,3525.0,3.2849]
[1718963611643,7.3897,3527.1,3524.9,0.2849]
[1718963611840,7.3897,3527.1,3524.8,0.1179728]
[1718963612337,7.3897,3527.1,3524.9,0.2849]
[1718963612530,7.3897,3527.1,3524.9,3.457]
[1718963612771,7.3897,3527.1,3525.5,2.26917]
[1718963613077,7.3897,3527.1,3525.6,0.8349]
[1718963613442,7.3897,3527.1,3525.6,0.2849]
[1718963614078,7.3897,3527.1,3525.2,0.2849]
[1718963614377,0.73897,3527.0,3525.2,0.2849]
[1718963614872,7.3897,3527.1,3525.2,3.2849]
[1718963615368,7.3897,3527.1,3525.3,0.2849]
[1718963616279,7.3897,3527.1,3525.1,0.2849]
[1718963617863,7.3897,3527.1,3525.1,2.55428]
[1718963618075,7.3897,3527.1,3525.3,0.2849]
[1718963618255,7.3897,3527.1,3525.2,3.0]
[1718963618256,7.3897,3527.1,3525.4,0.2849]
[1718963618451,7.3897,3527.1,3525.7,3.457]
[1718963618640,7.3897,3527.1,3526.0,2.26885]
[1718963618843,7.3897,3527.1,3526.2,2.26869]
[1718963619040,7.3897,3527.1,3526.3,0.55]
[1718963619455,7.3897,3527.1,3526.4,0.2849]
[1718963619866,7.3897,3527.1,3526.0,3.0]
[1718963620034,7.3897,3527.1,3525.8,4.709]
[1718963620347,7.3897,3527.1,3525.8,3.0]
[1718963620548,7.3897,3527.1,3525.7,0.2849]
[1718963620549,8.12867,3527.1,3525.7,0.2849]
[1718963621152,8.12867,3527.1,3525.1,3.0]
[1718963621401,8.12867,3527.1,3524.9,0.2849]
[1718963623387,8.12867,3527.1,3525.0,3.97849]
[1718963623540,8.12867,3527.1,3525.0,2.259]
[1718963623742,0.812867,3527.0,3525.1,2.26943]
[1718963623983,0.812867,3527.0,3525.1,3.0]
[1718963624350,0.812867,3527.0,3525.1,0.2849]
[1718963624568,0.812867,3527.0,3525.2,2.5439]
[1718963625042,0.812867,3527.0,3525.3,3.0]
[1718963625580,7.3897,3527.1,3526.0,0.2849]
[1718963625758,7.3897,3527.1,3526.0,3.2849]
[1718963626201,7.3897,3527.1,3526.1,0.02601734]
[1718963626903,7.3897,3527.1,3526.1,0.31091734]
[1718963627251,7.3897,3527.1,3526.1,0.02601734]
[1718963627599,7.3897,3527.1,3525.8,3.0]
[1718963628079,7.3897,3527.1,3525.9,0.02573897]
[1718963628281,8.12867,3527.1,3525.9,0.02573897]
[1718963628856,8.12867,3527.1,3525.1,0.2849]
[1718963629096,8.12867,3527.1,3525.2,0.02580948]
[1718963629606,7.3897,3527.1,3525.8,0.2849]
[1718963629958,7.3897,3527.1,3525.9,0.02596908]
[1718963630971,7.3897,3527.1,3525.5,3.2849]
[1718963631159,7.3897,3527.1,3525.3,3.0]
[1718963631160,5.2897,3527.1,3526.0,0.02596908]
[1718963631361,5.2897,3527.1,3525.1,0.2849]
[1718963631362,0.52897,3527.0,3525.1,3.2849]
[1718963631563,1.7962,3527.8,3525.1,0.2849]
[1718963631802,1.7962,3527.8,3525.2,0.02596908]
[1718963631803,0.55,3527.7,3525.2,0.02596908]
[1718963632311,0.55,3527.7,3525.3,0.02596908]
[1718963632508,0.55,3527.7,3524.9,1.9939]
[1718963632809,0.55,3527.7,3525.4,0.02596908]
[1718963632990,0.23462,3527.6,3524.9,1.9939]
[1718963633162,0.55,3527.5,3525.5,0.02596908]
[1718963633363,0.55,3527.5,3524.9,1.9939]
[1718963633664,0.55,3527.5,3525.6,0.02596908]
[1718963633985,0.378462,3527.4,3525.7,0.02596908]
[1718963634171,7.0905,3527.3,3525.7,0.02596908]
[1718963634374,7.0905,3527.3,3525.1,0.2849]
[1718963634900,7.0905,3527.3,3525.2,0.02596908]
[1718963637278,7.0905,3527.3,3525.2,0.08269274]
[1718963637611,7.3013,3527.1,3525.2,0.02596908]
[1718963638004,0.55,3527.0,3525.2,0.02596908]
[1718963638216,7.3013,3526.9,3525.2,0.02596908]
[1718963638777,7.3013,3526.9,3525.3,1.709]
[1718963639100,7.3013,3526.9,3525.4,1.709]
[1718963639512,7.3013,3526.9,3525.5,0.0260025]
[1718963641318,7.3013,3526.9,3525.9,1.9939]
[1718963641520,7.3013,3526.9,3525.9,7.26281]
[1718963641906,7.3013,3526.9,3526.0,0.02596538]
[1718963643287,0.73013,3526.8,3526.0,0.02596538]
[1718963643487,0.73013,3526.8,3525.4,3.2849]
[1718963643712,7.3013,3526.9,3525.5,0.02487488]
[1718963646133,7.3013,3526.9,3525.1,0.2849]
[1718963646134,7.3013,3526.9,3525.6,0.02487488]
[1718963646304,7.3013,3526.9,3525.1,0.2849]
[1718963646506,7.3013,3526.9,3525.2,0.02487488]
[1718963647899,0.55,3526.8,3525.2,0.02487488]
[1718963648138,0.78513,3526.7,3525.2,0.02487488]
[1718963650799,7.8277,3526.6,3524.8,0.1179728]
[1718963651399,7.8277,3526.6,3524.9,0.02496398]
[1718963651605,7.8277,3526.6,3524.8,0.1179728]
[1718963651854,1.763,3526.3,3524.8,0.1179728]
[1718963652159,0.55,3526.2,3524.8,0.1179728]
[1718963653238,6.9138,3526.1,3524.8,0.1179728]
[1718963653406,0.55,3526.0,3524.8,0.1179728]
[1718963655555,6.7918,3525.9,3524.8,0.1179728]
[1718963655751,1.56278,3525.8,3524.8,0.1179728]
[1718963656044,4.56278,3525.8,3524.8,0.1179728]
[1718963657036,1.01278,3525.8,3524.8,0.1179728]
[1718963657213,6.7918,3525.9,3524.8,0.1179728]
[1718963657412,3.0,3527.2,3524.9,0.02569544]
[1718963657650,8.8692,3527.1,3524.9,0.02569544]
[1718963658220,8.8692,3527.1,3524.8,0.1179728]
[1718963659760,3.0,3527.0,3524.8,0.1179728]
[1718963659942,2.01552,3526.9,3524.8,0.1179728]
[1718963660472,3.77142,3526.9,3524.8,0.1179728]
[1718963660639,7.4612,3526.8,3524.8,0.1179728]
[1718963661028,0.55,3526.7,3524.8,0.1179728]
[1718963661327,7.3229,3526.6,3524.8,0.1179728]
[1718963661534,1.51288,3526.5,3524.8,0.1179728]
[1718963662320,7.3229,3526.6,3524.8,0.1179728]
[1718963662675,7.3229,3526.6,3524.9,0.31065108]
[1718963663937,0.55,3526.5,3524.9,0.31065108]
[1718963665054,7.3229,3526.6,3524.9,0.31065108]
[1718963666970,6.8257,3527.4,3525.1,0.2849]
[1718963667127,0.98257,3527.3,3525.1,3.2849]
[1718963667329,1.53257,3527.3,3525.1,3.2849]
[1718963667652,1.53257,3527.3,3525.2,0.0256471]
[1718963669840,0.98257,3527.3,3525.2,0.0256471]
[1718963671290,0.780827,3527.2,3525.6,0.2849]
[1718963671494,7.3471,3528.1,3526.0,2.786]
[1718963671798,7.3471,3528.1,3526.1,3.3101312]
[1718963672011,7.3471,3528.1,3526.1,5.0191312]
[1718963672148,7.3471,3528.1,3526.1,3.0252312]
[1718963672149,2.786,3528.0,3526.1,3.0252312]
[1718963672486,4.01331,3527.9,3526.2,3.0]
[1718963672652,4.01331,3527.9,3526.1,0.0252312]
[1718963672844,4.01331,3527.9,3525.2,0.2849]
[1718963673047,4.01331,3527.9,3525.4,1.9939]
[1718963673343,0.55,3527.8,3525.4,1.9939]
[1718963673547,0.734931,3527.7,3525.5,0.0252312]
[1718963673988,0.55,3527.6,3525.5,0.0252312]
[1718963674482,7.2391,3527.5,3525.5,0.0252312]
[1718963674785,7.2391,3527.5,3525.1,4.9909]
[1718963674786,0.55,3527.4,3525.1,4.9909]
[1718963674966,0.55,3527.4,3525.6,0.0252312]
[1718963675162,0.77891,3527.3,3525.1,4.9909]
[1718963675359,0.77891,3527.3,3525.7,0.0252312]
[1718963675565,0.77891,3527.3,3525.6,0.2849]
[1718963675760,0.77891,3527.3,3525.8,0.0252312]
[1718963675966,0.77891,3527.3,3525.6,3.2849]
[1718963676289,0.70918795,3527.2,3525.9,0.0252312]
[1718963676506,0.70918795,3527.2,3525.6,3.2849]
[1718963677385,0.55,3527.4,3525.6,3.2849]
[1718963679383,0.55,3527.4,3525.6,3.0]
[1718963679580,0.55,3527.4,3525.1,4.9904]
[1718963679895,0.55,3527.4,3525.1,3.2844]
[1718963680188,0.55,3527.4,3525.2,0.02477986]
[1718963680398,0.77891,3527.3,3525.2,0.02477986]
[1718963680695,0.55,3527.2,3525.2,0.02477986]
[1718963681057,9.1882,3527.1,3525.2,0.02477986]
[1718963681257,0.55,3527.0,3524.8,0.1179728]
[1718963681451,1.02882,3526.9,3524.8,0.1179728]
[1718963681995,0.55,3526.8,3524.8,0.1179728]
[1718963682352,0.75,3526.5,3523.5,0.8829508]
[1718963682602,2.786,3525.6,3522.6,2.786]
[1718963682962,3.55,3525.5,3522.7,0.2844]
[1718963683699,3.55,3525.5,3522.7,3.2844]
[1718963683875,6.8275,3525.4,3522.8,0.05675796]
[1718963684087,0.55,3525.3,3522.8,0.05675796]
[1718963684394,0.55,3525.3,3522.7,0.2844]
[1718963684395,3.55,3525.3,3522.7,0.2844]
[1718963684594,1.40111,3525.2,3522.7,0.2844]
[1718963684818,0.55,3525.1,3522.7,0.2844]
[1718963685111,1.40111,3525.2,3523.1,2.786]
[1718963685254,1.40111,3525.2,3523.2,7.2032]
[1718963685457,6.8275,3525.4,3523.2,7.2032]